[Event "Live Chess"]
[Site "Chess.com"]
[Date "2024.06.01"]
[Round "-"]
[White "Mangoalo"]
[Black "Queensandpawns"]
[Result "0-1"]
[WhiteElo "1060"]
[BlackElo "2371"]
[TimeControl "300"]
[EndTime "15:01:06 PDT"]
[Termination "Queensandpawns won by resignation"]

1. e4 {[%clk 0:04:56.6]} 1... d5 {[%clk 0:04:55.9]} 2. exd5 {[%clk 0:04:53]}
2... c6 {[%clk 0:04:55.8]} 3. Nc3 {[%clk 0:04:52]} 3... cxd5 {[%clk 0:04:54.5]}
4. d4 {[%clk 0:04:45.6]} 4... Nf6 {[%clk 0:04:52.2]} 5. Bg5 {[%clk 0:04:44.2]}
5... Nc6 {[%clk 0:04:50]} 6. Nf3 {[%clk 0:04:41.1]} 6... h6 {[%clk 0:04:41.8]}
7. Bxf6 {[%clk 0:04:38.7]} 7... exf6 {[%clk 0:04:41.7]} 8. Bb5 {[%clk
0:04:33.4]} 8... Be6 {[%clk 0:04:41.6]} 9. Bxc6+ {[%clk 0:04:30.9]} 9... bxc6
{[%clk 0:04:41.5]} 10. Qe2 {[%clk 0:04:30.2]} 10... Bd6 {[%clk 0:04:41.2]} 11.
O-O-O {[%clk 0:04:29]} 11... O-O {[%clk 0:04:41.1]} 12. h4 {[%clk 0:04:26.9]}
12... Qa5 {[%clk 0:04:40]} 13. a3 {[%clk 0:04:25.3]} 13... Bxa3 {[%clk 0:04:38]}
14. bxa3 {[%clk 0:04:25.2]} 14... Qxc3 {[%clk 0:04:36.6]} 0-1

[Event "Live Chess"]
[Site "Chess.com"]
[Date "2024.06.01"]
[Round "-"]
[White "katoma"]
[Black "WelshTiger"]
[Result "1/2-1/2"]
[WhiteElo "2057"]
[BlackElo "2505"]
[TimeControl "300"]
[EndTime "15:01:07 PDT"]
[Termination "Game drawn by repetition"]

1. e4 {[%clk 0:04:57.4]} 1... c5 {[%clk 0:04:42.8]} 2. Nf3 {[%clk 0:04:46.8]}
2... d6 {[%clk 0:04:42]} 3. d4 {[%clk 0:04:42]} 3... cxd4 {[%clk 0:04:40.8]} 4.
Qxd4 {[%clk 0:04:40.8]} 4... a6 {[%clk 0:04:37.9]} 5. Be3 {[%clk 0:04:32.3]}
5... Nc6 {[%clk 0:04:36.7]} 6. Qb6 {[%clk 0:04:30.9]} 6... Qxb6 {[%clk
0:04:33.1]} 7. Bxb6 {[%clk 0:04:29.7]} 7... Nf6 {[%clk 0:04:33]} 8. Nc3 {[%clk
0:04:27.9]} 8... Bg4 {[%clk 0:04:26.3]} 9. Be2 {[%clk 0:04:18.3]} 9... Bxf3
{[%clk 0:04:24.9]} 10. Bxf3 {[%clk 0:04:16.6]} 10... Rc8 {[%clk 0:04:18.6]} 11.
O-O-O {[%clk 0:04:11.3]} 11... e6 {[%clk 0:04:02.9]} 12. Rhe1 {[%clk 0:03:51.2]}
12... Be7 {[%clk 0:04:01.4]} 13. a3 {[%clk 0:03:43.3]} 13... Ne5 {[%clk
0:04:00]} 14. Be2 {[%clk 0:03:29.7]} 14... Nc4 {[%clk 0:03:59]} 15. Bxc4 {[%clk
0:03:25.2]} 15... Rxc4 {[%clk 0:03:58.9]} 16. Rd4 {[%clk 0:03:19.4]} 16... Rxd4
{[%clk 0:03:50.6]} 17. Bxd4 {[%clk 0:03:18.3]} 17... b5 {[%clk 0:03:50.5]} 18.
a4 {[%clk 0:03:12.4]} 18... bxa4 {[%clk 0:03:43.4]} 19. Nxa4 {[%clk 0:03:10.6]}
19... Kd7 {[%clk 0:03:39.3]} 20. b3 {[%clk 0:02:52.9]} 20... Kc6 {[%clk
0:03:37.8]} 21. Kb2 {[%clk 0:02:49.2]} 21... Rb8 {[%clk 0:03:24.2]} 22. f3
{[%clk 0:02:46.6]} 22... Nd7 {[%clk 0:03:18.8]} 23. Ra1 {[%clk 0:02:34]} 23...
a5 {[%clk 0:02:44]} 24. Nc3 {[%clk 0:02:24.9]} 24... Ra8 {[%clk 0:02:34.8]} 25.
Bxg7 {[%clk 0:02:12.3]} 25... Rg8 {[%clk 0:02:28.8]} 26. Bd4 {[%clk 0:02:09.8]}
26... Rxg2 {[%clk 0:02:27.8]} 27. Rxa5 {[%clk 0:02:08.5]} 27... Rxh2 {[%clk
0:02:26.2]} 28. Ra6+ {[%clk 0:02:04.1]} 28... Kb7 {[%clk 0:02:19.2]} 29. Ra7+
{[%clk 0:02:01.5]} 29... Kc6 {[%clk 0:02:18.4]} 30. Ra6+ {[%clk 0:01:30.6]}
30... Kb7 {[%clk 0:02:15.9]} 31. Ra7+ {[%clk 0:01:28.6]} 31... Kc6 {[%clk
0:02:15.2]} 32. Ra6+ {[%clk 0:01:27.6]} 1/2-1/2

[Event "Live Chess"]
[Site "Chess.com"]
[Date "2024.06.01"]
[Round "-"]
[White "degringolade64"]
[Black "ProfessorChess101"]
[Result "0-1"]
[WhiteElo "2113"]
[BlackElo "2728"]
[TimeControl "300"]
[EndTime "15:01:12 PDT"]
[Termination "ProfessorChess101 won on time"]

1. e4 {[%clk 0:04:54.1]} 1... a6 {[%clk 0:04:56.9]} 2. d4 {[%clk 0:04:51.6]}
2... b5 {[%clk 0:04:56.2]} 3. Nf3 {[%clk 0:04:45.2]} 3... Bb7 {[%clk 0:04:54.8]}
4. Bd3 {[%clk 0:04:44.7]} 4... e6 {[%clk 0:04:53.9]} 5. Qe2 {[%clk 0:04:42.8]}
5... d6 {[%clk 0:04:49]} 6. O-O {[%clk 0:04:34]} 6... Nd7 {[%clk 0:04:46.4]} 7.
a4 {[%clk 0:04:27.6]} 7... b4 {[%clk 0:04:40.5]} 8. a5 {[%clk 0:04:22.3]} 8...
Ngf6 {[%clk 0:04:36.9]} 9. c4 {[%clk 0:04:14.5]} 9... e5 {[%clk 0:04:29.3]} 10.
Bd2 {[%clk 0:04:02.2]} 10... Be7 {[%clk 0:04:21]} 11. dxe5 {[%clk 0:03:54.4]}
11... dxe5 {[%clk 0:04:15.2]} 12. Rd1 {[%clk 0:03:41.4]} 12... O-O {[%clk
0:04:10.9]} 13. Bg5 {[%clk 0:03:37]} 13... Qc8 {[%clk 0:04:00.4]} 14. Nbd2
{[%clk 0:03:32.3]} 14... h6 {[%clk 0:03:54.5]} 15. Bxf6 {[%clk 0:03:24.4]} 15...
Bxf6 {[%clk 0:03:52.3]} 16. Nb3 {[%clk 0:03:21.9]} 16... c5 {[%clk 0:03:48]} 17.
h4 {[%clk 0:03:06.4]} 17... Qc7 {[%clk 0:03:39.4]} 18. Qe3 {[%clk 0:03:00.7]}
18... Rfd8 {[%clk 0:03:34.2]} 19. Rd2 {[%clk 0:02:58.9]} 19... Rac8 {[%clk
0:03:32.3]} 20. Rad1 {[%clk 0:02:56.9]} 20... Nf8 {[%clk 0:03:31.3]} 21. Bb1
{[%clk 0:02:49.6]} 21... Ne6 {[%clk 0:03:19.1]} 22. Rd5 {[%clk 0:02:28.2]} 22...
Bxd5 {[%clk 0:03:12.2]} 23. exd5 {[%clk 0:02:27]} 23... Nd4 {[%clk 0:03:09.1]}
24. Nbxd4 {[%clk 0:01:57.9]} 24... exd4 {[%clk 0:03:02.2]} 25. Qe4 {[%clk
0:01:50.3]} 25... g6 {[%clk 0:02:54.2]} 26. h5 {[%clk 0:01:49.4]} 26... Re8
{[%clk 0:02:21.4]} 27. Qg4 {[%clk 0:01:47.1]} 27... g5 {[%clk 0:02:11.4]} 28.
Qf5 {[%clk 0:01:43.3]} 28... Bg7 {[%clk 0:02:08.6]} 29. Nxg5 {[%clk 0:01:03.3]}
29... hxg5 {[%clk 0:01:56.4]} 30. h6 {[%clk 0:00:58.7]} 30... Qe5 {[%clk
0:01:25.2]} 31. Qh7+ {[%clk 0:00:55.9]} 31... Kf8 {[%clk 0:01:21.1]} 32. Bf5
{[%clk 0:00:16.4]} 32... Rcd8 {[%clk 0:01:09.8]} 33. Rd3 {[%clk 0:00:14.2]}
33... Qe1+ {[%clk 0:00:56]} 34. Kh2 {[%clk 0:00:12.7]} 34... Be5+ {[%clk
0:00:55.5]} 35. g3 {[%clk 0:00:11]} 35... Qxf2+ {[%clk 0:00:44.3]} 36. Kh3
{[%clk 0:00:10.6]} 36... g4+ {[%clk 0:00:38.9]} 37. Kxg4 {[%clk 0:00:05.4]}
37... Qe2+ {[%clk 0:00:28]} 38. Rf3 {[%clk 0:00:04.6]} 38... Ke7 {[%clk
0:00:21.8]} 39. Be6 {[%clk 0:00:03.4]} 39... Rg8+ {[%clk 0:00:21]} 40. Kh3
{[%clk 0:00:01.1]} 40... Qxf3 {[%clk 0:00:16.9]} 41. Qxf7+ {[%clk 0:00:00.7]}
41... Qxf7 {[%clk 0:00:16.8]} 0-1

[Event "Live Chess"]
[Site "Chess.com"]
[Date "2024.06.01"]
[Round "-"]
[White "SavagePawn7"]
[Black "Delacorta"]
[Result "0-1"]
[WhiteElo "659"]
[BlackElo "1590"]
[TimeControl "300"]
[EndTime "15:01:18 PDT"]
[Termination "Delacorta won by resignation"]

1. e4 {[%clk 0:04:54.7]} 1... e6 {[%clk 0:04:59]} 2. d4 {[%clk 0:04:50.2]} 2...
d5 {[%clk 0:04:58.1]} 3. c4 {[%clk 0:04:48.5]} 3... dxe4 {[%clk 0:04:55.4]} 4.
d5 {[%clk 0:04:46.9]} 4... exd5 {[%clk 0:04:52.5]} 5. cxd5 {[%clk 0:04:44.4]}
5... Bb4+ {[%clk 0:04:48.8]} 6. Nc3 {[%clk 0:04:39.4]} 6... Bd7 {[%clk
0:04:25.5]} 7. f3 {[%clk 0:04:25.5]} 7... Nf6 {[%clk 0:04:07.1]} 8. Ne2 {[%clk
0:04:17.2]} 8... exf3 {[%clk 0:03:58]} 9. gxf3 {[%clk 0:04:16]} 9... O-O {[%clk
0:03:48.9]} 10. Bd2 {[%clk 0:04:11.3]} 10... Re8 {[%clk 0:03:41]} 11. a3 {[%clk
0:04:06.1]} 11... Bd6 {[%clk 0:03:37.7]} 12. Bg2 {[%clk 0:03:49]} 12... Nh5
{[%clk 0:03:31.4]} 13. O-O {[%clk 0:03:45.7]} 13... Qh4 {[%clk 0:03:26.7]} 14.
Ne4 {[%clk 0:03:33.3]} 14... Bxh2+ {[%clk 0:03:09.9]} 15. Kh1 {[%clk 0:03:24.7]}
15... Bf4+ {[%clk 0:02:49]} 16. Kg1 {[%clk 0:03:17]} 16... Bxd2 {[%clk
0:02:39.5]} 17. Qxd2 {[%clk 0:03:12.4]} 17... Bb5 {[%clk 0:02:17.9]} 18. N4c3
{[%clk 0:03:00]} 18... Bxe2 {[%clk 0:02:10]} 19. Qxe2 {[%clk 0:02:57.6]} 19...
Rxe2 {[%clk 0:02:08.4]} 20. Nxe2 {[%clk 0:02:49.3]} 20... Nd7 {[%clk 0:02:01.9]}
0-1

[Event "Live Chess"]
[Site "Chess.com"]
[Date "2024.06.01"]
[Round "-"]
[White "FlyingChessKestrel13"]
[Black "JohanKjeldahl"]
[Result "1-0"]
[WhiteElo "2082"]
[BlackElo "1875"]
[TimeControl "300"]
[EndTime "15:01:30 PDT"]
[Termination "FlyingChessKestrel13 won by resignation"]

1. e4 {[%clk 0:04:54.4]} 1... c5 {[%clk 0:04:58.1]} 2. Nf3 {[%clk 0:04:53.8]}
2... e6 {[%clk 0:04:57.1]} 3. c4 {[%clk 0:04:52.2]} 3... Nc6 {[%clk 0:04:55.1]}
4. Nc3 {[%clk 0:04:51.4]} 4... a6 {[%clk 0:04:53.4]} 5. d3 {[%clk 0:04:50.8]}
5... Nge7 {[%clk 0:04:48.7]} 6. Be3 {[%clk 0:04:50.4]} 6... b6 {[%clk
0:04:46.1]} 7. d4 {[%clk 0:04:49]} 7... cxd4 {[%clk 0:04:44.2]} 8. Nxd4 {[%clk
0:04:47.3]} 8... Bb7 {[%clk 0:04:43.2]} 9. Be2 {[%clk 0:04:46.2]} 9... g6 {[%clk
0:04:41]} 10. O-O {[%clk 0:04:45.4]} 10... Bg7 {[%clk 0:04:40.5]} 11. Bf3 {[%clk
0:04:44.4]} 11... O-O {[%clk 0:04:38.7]} 12. Nxc6 {[%clk 0:04:43.3]} 12... dxc6
{[%clk 0:04:36.8]} 13. Qc2 {[%clk 0:04:41.9]} 13... c5 {[%clk 0:04:34.2]} 14.
Rad1 {[%clk 0:04:40.9]} 14... Qc7 {[%clk 0:04:32.1]} 15. a3 {[%clk 0:04:38.3]}
15... Rad8 {[%clk 0:04:29.8]} 16. b4 {[%clk 0:04:31.5]} 16... cxb4 {[%clk
0:04:25]} 17. axb4 {[%clk 0:04:30.3]} 17... Rxd1 {[%clk 0:04:22.5]} 18. Nxd1
{[%clk 0:04:28.4]} 18... Rd8 {[%clk 0:04:22]} 19. Nb2 {[%clk 0:04:26.1]} 19...
Nc6 {[%clk 0:04:09.4]} 20. Qb3 {[%clk 0:04:12.5]} 20... Ne5 {[%clk 0:04:05.5]}
21. Be2 {[%clk 0:04:10.4]} 21... Bxe4 {[%clk 0:04:00.6]} 22. Na4 {[%clk
0:04:04.9]} 22... b5 {[%clk 0:03:45.1]} 23. cxb5 {[%clk 0:04:03.4]} 23... axb5
{[%clk 0:03:43.5]} 24. Nc5 {[%clk 0:04:02.8]} 24... Bd5 {[%clk 0:03:36.6]} 25.
Qa3 {[%clk 0:03:57.5]} 25... Nc4 {[%clk 0:03:34.8]} 26. Bxc4 {[%clk 0:03:56.6]}
26... Bxc4 {[%clk 0:03:33.3]} 27. Qa5 {[%clk 0:03:50.9]} 27... Qxa5 {[%clk
0:03:25.2]} 28. bxa5 {[%clk 0:03:50]} 28... Bxf1 {[%clk 0:03:24]} 29. Kxf1
{[%clk 0:03:48.7]} 29... Rd1+ {[%clk 0:03:15.7]} 30. Ke2 {[%clk 0:03:47]} 30...
Ra1 {[%clk 0:03:14]} 31. a6 {[%clk 0:03:45.9]} 31... Bf8 {[%clk 0:03:09.2]} 32.
a7 {[%clk 0:03:40.5]} 32... Bxc5 {[%clk 0:03:03.8]} 33. Bxc5 {[%clk 0:03:39.1]}
33... b4 {[%clk 0:03:02.5]} 34. Kd2 {[%clk 0:03:37.9]} 34... f5 {[%clk
0:02:46.1]} 35. Kc2 {[%clk 0:03:36.7]} 35... Kf7 {[%clk 0:02:42.3]} 36. Kb2
{[%clk 0:03:35.7]} 36... Ra6 {[%clk 0:02:36.7]} 37. Kb3 {[%clk 0:03:34.3]} 37...
e5 {[%clk 0:02:35]} 38. Kxb4 {[%clk 0:03:33.4]} 38... Ke6 {[%clk 0:02:34]} 39.
Kb5 {[%clk 0:03:32.7]} 39... Ra2 {[%clk 0:02:32.1]} 40. Bb6 {[%clk 0:03:29.4]}
40... Kd6 {[%clk 0:02:25]} 41. Ba5 {[%clk 0:03:27.9]} 41... Rb2+ {[%clk
0:02:20.5]} 42. Ka6 {[%clk 0:03:26.8]} 1-0

[Event "Live Chess"]
[Site "Chess.com"]
[Date "2024.06.01"]
[Round "-"]
[White "agamilewska"]
[Black "lyricalschemes"]
[Result "0-1"]
[WhiteElo "1770"]
[BlackElo "2433"]
[TimeControl "300"]
[EndTime "15:02:00 PDT"]
[Termination "lyricalschemes won by resignation"]

1. d4 {[%clk 0:04:47.7]} 1... Nf6 {[%clk 0:04:58.8]} 2. c4 {[%clk 0:04:46.4]}
2... e6 {[%clk 0:04:57.3]} 3. Nc3 {[%clk 0:04:45.6]} 3... Bb4 {[%clk 0:04:56.3]}
4. Bd2 {[%clk 0:04:43.8]} 4... c5 {[%clk 0:04:52.5]} 5. e3 {[%clk 0:04:42.7]}
5... cxd4 {[%clk 0:04:50.9]} 6. exd4 {[%clk 0:04:41.5]} 6... d5 {[%clk
0:04:50.2]} 7. cxd5 {[%clk 0:04:39.7]} 7... exd5 {[%clk 0:04:49.1]} 8. Nf3
{[%clk 0:04:36.7]} 8... O-O {[%clk 0:04:47.6]} 9. Be2 {[%clk 0:04:34.6]} 9...
Re8 {[%clk 0:04:42.8]} 10. O-O {[%clk 0:04:33.5]} 10... Bg4 {[%clk 0:04:42.4]}
11. h3 {[%clk 0:04:32.3]} 11... Bh5 {[%clk 0:04:41.5]} 12. a3 {[%clk 0:04:30.9]}
12... Ba5 {[%clk 0:04:40.2]} 13. b4 {[%clk 0:04:29.6]} 13... Bc7 {[%clk
0:04:39.3]} 14. Rc1 {[%clk 0:04:28.9]} 14... a6 {[%clk 0:04:38.6]} 15. Ne5
{[%clk 0:04:14.5]} 15... Bxe2 {[%clk 0:04:32.5]} 16. Qxe2 {[%clk 0:04:13.8]}
16... Nc6 {[%clk 0:04:26.3]} 17. Bf4 {[%clk 0:04:11.1]} 17... Nxd4 {[%clk
0:04:24.6]} 18. Qd3 {[%clk 0:03:54.6]} 18... Ne6 {[%clk 0:04:07.6]} 19. Nxf7
{[%clk 0:02:32.8]} 19... Nxf4 {[%clk 0:03:59.1]} 20. Qf3 {[%clk 0:01:10]} 20...
Kxf7 {[%clk 0:03:55.5]} 21. Rfd1 {[%clk 0:01:03.2]} 21... Kg8 {[%clk 0:03:43.7]}
22. g3 {[%clk 0:00:44.9]} 22... Nxh3+ {[%clk 0:03:41]} 23. Kh2 {[%clk
0:00:44.5]} 23... Ng5 {[%clk 0:03:39.8]} 24. Qd3 {[%clk 0:00:38.4]} 24... d4
{[%clk 0:03:30.1]} 0-1

[Event "Live Chess"]
[Site "Chess.com"]
[Date "2024.06.01"]
[Round "-"]
[White "NebodarMatevich"]
[Black "JanMur7"]
[Result "0-1"]
[WhiteElo "1562"]
[BlackElo "2283"]
[TimeControl "300"]
[EndTime "15:02:00 PDT"]
[Termination "JanMur7 won by resignation"]

1. e4 {[%clk 0:04:59.3]} 1... g6 {[%clk 0:04:59]} 2. d4 {[%clk 0:04:58.2]} 2...
Bg7 {[%clk 0:04:58.9]} 3. c4 {[%clk 0:04:57]} 3... c5 {[%clk 0:04:58.4]} 4. Be3
{[%clk 0:04:49.3]} 4... cxd4 {[%clk 0:04:56.8]} 5. Bxd4 {[%clk 0:04:48.7]} 5...
Nf6 {[%clk 0:04:55.4]} 6. e5 {[%clk 0:04:44.9]} 6... Nh5 {[%clk 0:04:54]} 7. e6
{[%clk 0:04:40.4]} 7... dxe6 {[%clk 0:04:52]} 8. Bxg7 {[%clk 0:04:38.7]} 8...
Qxd1+ {[%clk 0:04:51.9]} 9. Kxd1 {[%clk 0:04:37.3]} 9... Nxg7 {[%clk 0:04:51.8]}
10. Nf3 {[%clk 0:04:35.5]} 10... Nf5 {[%clk 0:04:50.2]} 11. Nc3 {[%clk 0:04:33]}
11... Nc6 {[%clk 0:04:48.8]} 12. Bd3 {[%clk 0:04:31.1]} 12... O-O {[%clk
0:04:47.4]} 13. Kc2 {[%clk 0:04:30]} 13... Nb4+ {[%clk 0:04:42.6]} 14. Kd2
{[%clk 0:04:27.5]} 14... Rd8 {[%clk 0:04:39.8]} 15. Ne1 {[%clk 0:04:16]} 15...
Nd6 {[%clk 0:04:19.6]} 16. a3 {[%clk 0:04:13.4]} 16... Nxd3 {[%clk 0:04:17]} 17.
Nxd3 {[%clk 0:04:12.1]} 17... Nxc4+ {[%clk 0:04:16.2]} 18. Kc2 {[%clk
0:04:10.8]} 18... e5 {[%clk 0:04:15.3]} 19. b3 {[%clk 0:03:58.1]} 19... Bf5
{[%clk 0:04:13.3]} 20. bxc4 {[%clk 0:03:54.1]} 20... Rxd3 {[%clk 0:04:10.7]} 21.
g4 {[%clk 0:03:47.1]} 21... Rxc3+ {[%clk 0:04:02.6]} 22. Kxc3 {[%clk 0:03:46.3]}
22... Bxg4 {[%clk 0:04:02.5]} 23. h3 {[%clk 0:03:40.1]} 23... Bf3 {[%clk
0:04:01.3]} 24. Rhe1 {[%clk 0:03:37.5]} 24... f6 {[%clk 0:03:58.8]} 25. Rab1
{[%clk 0:03:33]} 25... b6 {[%clk 0:03:57.4]} 26. Rb2 {[%clk 0:03:19.8]} 26...
Rc8 {[%clk 0:03:55.1]} 27. a4 {[%clk 0:03:15.9]} 27... Bd5 {[%clk 0:03:52.8]}
28. Kd2 {[%clk 0:02:49.3]} 28... Rxc4 {[%clk 0:03:50.5]} 29. Rc2 {[%clk
0:02:44]} 29... Rxa4 {[%clk 0:03:40.4]} 30. Rc8+ {[%clk 0:02:43]} 30... Kg7
{[%clk 0:03:37]} 31. Rc7 {[%clk 0:02:42.4]} 31... Kf7 {[%clk 0:03:34]} 32. Ke3
{[%clk 0:02:36.2]} 32... Re4+ {[%clk 0:03:32.4]} 33. Kd2 {[%clk 0:02:33.7]}
33... Rxe1 {[%clk 0:03:32.3]} 34. Kxe1 {[%clk 0:02:33.1]} 34... a5 {[%clk
0:03:31.4]} 35. Kd2 {[%clk 0:02:29.6]} 35... b5 {[%clk 0:03:29.6]} 36. Ra7
{[%clk 0:02:28.4]} 36... a4 {[%clk 0:03:28.3]} 37. Ra5 {[%clk 0:02:27.9]} 37...
Bc4 {[%clk 0:03:28.2]} 38. Kc3 {[%clk 0:02:27]} 38... h5 {[%clk 0:03:21.4]} 39.
h4 {[%clk 0:02:25.3]} 39... g5 {[%clk 0:03:20.1]} 40. hxg5 {[%clk 0:02:24.9]}
40... fxg5 {[%clk 0:03:20]} 41. Ra6 {[%clk 0:02:23.5]} 41... e6 {[%clk
0:03:17.4]} 42. Ra7+ {[%clk 0:02:22.2]} 42... Kg6 {[%clk 0:03:16.9]} 43. Ra6
{[%clk 0:02:20.4]} 43... h4 {[%clk 0:03:15.4]} 44. Ra8 {[%clk 0:02:19.3]} 44...
g4 {[%clk 0:03:10.4]} 45. Rg8+ {[%clk 0:02:17.3]} 45... Kf5 {[%clk 0:03:09.6]}
46. Rf8+ {[%clk 0:02:14.8]} 46... Ke4 {[%clk 0:03:08.2]} 47. Rh8 {[%clk
0:02:13.2]} 47... h3 {[%clk 0:03:07]} 48. Rg8 {[%clk 0:02:11.4]} 48... Kf3
{[%clk 0:03:06.2]} 49. Rh8 {[%clk 0:02:07.9]} 49... Kg2 {[%clk 0:03:05.2]} 50.
Rh5 {[%clk 0:01:58.6]} 50... h2 {[%clk 0:03:03.9]} 51. Rxe5 {[%clk 0:01:58]}
51... h1=Q {[%clk 0:03:03.8]} 52. f4 {[%clk 0:01:53.3]} 52... Qc1+ {[%clk
0:02:59.7]} 53. Kb4 {[%clk 0:01:52.7]} 53... Qb2+ {[%clk 0:02:58.1]} 54. Ka5
{[%clk 0:01:52]} 54... Qxe5 {[%clk 0:02:55.9]} 55. fxe5 {[%clk 0:01:51.1]} 55...
Kf3 {[%clk 0:02:55.5]} 56. Kb4 {[%clk 0:01:49.8]} 56... Ke4 {[%clk 0:02:55.4]}
57. Kc3 {[%clk 0:01:49.4]} 57... Kxe5 {[%clk 0:02:55.3]} 0-1

[Event "Live Chess"]
[Site "Chess.com"]
[Date "2024.06.01"]
[Round "-"]
[White "dmitro74"]
[Black "DylanMeyer1"]
[Result "0-1"]
[WhiteElo "1741"]
[BlackElo "1719"]
[TimeControl "300"]
[EndTime "15:02:13 PDT"]
[Termination "DylanMeyer1 won by checkmate"]

1. d4 {[%clk 0:04:57.7]} 1... d5 {[%clk 0:04:59.5]} 2. c4 {[%clk 0:04:56.6]}
2... e6 {[%clk 0:04:57.9]} 3. Nc3 {[%clk 0:04:54.8]} 3... Nf6 {[%clk 0:04:57.5]}
4. Bg5 {[%clk 0:04:54.2]} 4... Be7 {[%clk 0:04:56.9]} 5. Nf3 {[%clk 0:04:53]}
5... a6 {[%clk 0:04:56.4]} 6. e3 {[%clk 0:04:51.2]} 6... b6 {[%clk 0:04:54.9]}
7. Bd3 {[%clk 0:04:47.8]} 7... dxc4 {[%clk 0:04:54.4]} 8. Bxc4 {[%clk
0:04:46.5]} 8... Bb7 {[%clk 0:04:54]} 9. O-O {[%clk 0:04:44.9]} 9... c5 {[%clk
0:04:53.5]} 10. dxc5 {[%clk 0:04:41.9]} 10... Qc7 {[%clk 0:04:42.6]} 11. Rc1
{[%clk 0:04:32]} 11... bxc5 {[%clk 0:04:37.9]} 12. Bf4 {[%clk 0:04:14.6]} 12...
Qc6 {[%clk 0:04:34.3]} 13. Qb3 {[%clk 0:04:03.1]} 13... O-O {[%clk 0:04:26.3]}
14. Ne5 {[%clk 0:04:01.6]} 14... Qxg2# {[%clk 0:04:25.1]} 0-1

[Event "Live Chess"]
[Site "Chess.com"]
[Date "2024.06.01"]
[Round "-"]
[White "RichardABates"]
[Black "MagnersCarlsberg2870"]
[Result "1-0"]
[WhiteElo "2257"]
[BlackElo "1763"]
[TimeControl "300"]
[EndTime "15:02:18 PDT"]
[Termination "RichardABates won by resignation"]

1. d4 {[%clk 0:04:57.3]} 1... Nf6 {[%clk 0:04:58.4]} 2. Nf3 {[%clk 0:04:55.9]}
2... b6 {[%clk 0:04:56.1]} 3. c4 {[%clk 0:04:52.5]} 3... e6 {[%clk 0:04:53.9]}
4. g3 {[%clk 0:04:51]} 4... Bb4+ {[%clk 0:04:52.6]} 5. Bd2 {[%clk 0:04:49.5]}
5... a5 {[%clk 0:04:49.9]} 6. Bg2 {[%clk 0:04:47.9]} 6... Bb7 {[%clk 0:04:47.6]}
7. O-O {[%clk 0:04:46.2]} 7... d6 {[%clk 0:04:45.8]} 8. Bg5 {[%clk 0:04:42.7]}
8... Nbd7 {[%clk 0:04:38.5]} 9. a3 {[%clk 0:04:40.6]} 9... h6 {[%clk 0:04:34.2]}
10. Bxf6 {[%clk 0:04:38.8]} 10... Qxf6 {[%clk 0:04:32]} 11. axb4 {[%clk
0:04:37.5]} 11... axb4 {[%clk 0:04:30.4]} 12. Rxa8+ {[%clk 0:04:35.7]} 12...
Bxa8 {[%clk 0:04:29.4]} 13. Qa4 {[%clk 0:04:33.4]} 13... O-O {[%clk 0:04:27.5]}
14. Qxd7 {[%clk 0:04:30.9]} 1-0

[Event "Live Chess"]
[Site "Chess.com"]
[Date "2024.06.01"]
[Round "-"]
[White "lestmak"]
[Black "GrahamCuthbert"]
[Result "0-1"]
[WhiteElo "523"]
[BlackElo "1016"]
[TimeControl "300"]
[EndTime "15:02:26 PDT"]
[Termination "GrahamCuthbert won by resignation"]

1. e4 {[%clk 0:04:58]} 1... c6 {[%clk 0:04:59]} 2. d4 {[%clk 0:04:55]} 2... d5
{[%clk 0:04:58.9]} 3. f3 {[%clk 0:04:53.8]} 3... dxe4 {[%clk 0:04:57.4]} 4. fxe4
{[%clk 0:04:53.2]} 4... Nf6 {[%clk 0:04:47.6]} 5. Nf3 {[%clk 0:04:53.1]} 5...
Bg4 {[%clk 0:04:45.7]} 6. Bc4 {[%clk 0:04:35.8]} 6... Nxe4 {[%clk 0:04:20.6]} 7.
Bxf7+ {[%clk 0:04:29.7]} 7... Kxf7 {[%clk 0:04:16.3]} 8. Ne5+ {[%clk 0:04:28.9]}
8... Ke8 {[%clk 0:04:07.9]} 9. Qxg4 {[%clk 0:04:26.7]} 9... Nf6 {[%clk
0:03:59.3]} 10. Qf4 {[%clk 0:04:09.7]} 10... Qa5+ {[%clk 0:03:52.4]} 11. c3
{[%clk 0:04:05.1]} 11... Nbd7 {[%clk 0:03:50.4]} 12. O-O {[%clk 0:03:50.7]}
12... Nxe5 {[%clk 0:03:46.2]} 13. dxe5 {[%clk 0:03:46.3]} 13... Nd7 {[%clk
0:03:40.2]} 14. Qf7+ {[%clk 0:03:23]} 14... Kd8 {[%clk 0:03:36]} 15. e6 {[%clk
0:03:01.4]} 15... Qc5+ {[%clk 0:03:17.6]} 16. Kh1 {[%clk 0:02:58.3]} 16... Qd5
{[%clk 0:03:09.9]} 17. Rd1 {[%clk 0:02:50.7]} 17... Qxd1+ {[%clk 0:03:01.8]} 0-1

[Event "Live Chess"]
[Site "Chess.com"]
[Date "2024.06.01"]
[Round "-"]
[White "koekoekoe"]
[Black "BearFromUkraine"]
[Result "1-0"]
[WhiteElo "1995"]
[BlackElo "1037"]
[TimeControl "300"]
[EndTime "15:02:30 PDT"]
[Termination "koekoekoe won by resignation"]

1. d4 {[%clk 0:04:59.8]} 1... d5 {[%clk 0:04:55.1]} 2. Bf4 {[%clk 0:04:57.1]}
2... Bf5 {[%clk 0:04:51]} 3. e3 {[%clk 0:04:56.5]} 3... e6 {[%clk 0:04:47.8]} 4.
Nf3 {[%clk 0:04:56.1]} 4... Bd6 {[%clk 0:04:44.5]} 5. Bg3 {[%clk 0:04:54.8]}
5... Nf6 {[%clk 0:04:42]} 6. Bd3 {[%clk 0:04:53.1]} 6... Bg6 {[%clk 0:04:38.5]}
7. O-O {[%clk 0:04:52]} 7... O-O {[%clk 0:04:32.7]} 8. c4 {[%clk 0:04:47.6]}
8... dxc4 {[%clk 0:04:28.1]} 9. Bxc4 {[%clk 0:04:43.9]} 9... Nc6 {[%clk
0:04:25.5]} 10. Nc3 {[%clk 0:04:43.4]} 10... Qd7 {[%clk 0:04:18.1]} 11. Bb5
{[%clk 0:04:41.5]} 11... a6 {[%clk 0:04:15.6]} 12. Ba4 {[%clk 0:04:40]} 12... b5
{[%clk 0:04:14.1]} 13. Bc2 {[%clk 0:04:39.6]} 13... Bxc2 {[%clk 0:04:11.3]} 14.
Qxc2 {[%clk 0:04:39.5]} 14... h6 {[%clk 0:04:05.8]} 15. Rac1 {[%clk 0:04:39.1]}
15... Rfe8 {[%clk 0:03:55.7]} 16. Ne4 {[%clk 0:04:36.5]} 16... Nxe4 {[%clk
0:03:52.9]} 17. Qxe4 {[%clk 0:04:36.4]} 17... Bxg3 {[%clk 0:03:50]} 18. hxg3
{[%clk 0:04:30.3]} 18... Ne7 {[%clk 0:03:45]} 19. Ne5 {[%clk 0:04:28.3]} 19...
Qd5 {[%clk 0:03:41.2]} 20. Qxd5 {[%clk 0:04:09.9]} 20... Nxd5 {[%clk 0:03:37.4]}
21. Rc5 {[%clk 0:04:08.6]} 21... Red8 {[%clk 0:03:12.4]} 22. Rfc1 {[%clk
0:04:06.8]} 22... Rd6 {[%clk 0:02:49.3]} 23. a3 {[%clk 0:03:57.7]} 23... f6
{[%clk 0:02:46.8]} 24. Nd3 {[%clk 0:03:50.5]} 24... Rad8 {[%clk 0:02:24.4]} 25.
Nf4 {[%clk 0:03:48.3]} 25... Nxf4 {[%clk 0:02:22.2]} 26. gxf4 {[%clk 0:03:47.5]}
26... R6d7 {[%clk 0:01:55.5]} 27. Rxc7 {[%clk 0:03:46.5]} 27... Rxc7 {[%clk
0:01:54.4]} 28. Rxc7 {[%clk 0:03:46.4]} 28... Kh7 {[%clk 0:01:38.2]} 29. Rc6
{[%clk 0:03:45.5]} 29... Ra8 {[%clk 0:01:36.9]} 30. Rxe6 {[%clk 0:03:44.4]}
30... a5 {[%clk 0:01:27.3]} 31. Rb6 {[%clk 0:03:42.2]} 31... b4 {[%clk
0:01:23.4]} 32. axb4 {[%clk 0:03:42.1]} 32... axb4 {[%clk 0:01:23.3]} 33. Rxb4
{[%clk 0:03:41.4]} 33... Ra1+ {[%clk 0:01:22]} 34. Kh2 {[%clk 0:03:41]} 34...
Rf1 {[%clk 0:01:19.2]} 35. Kg3 {[%clk 0:03:39.7]} 1-0